Cogmind - Beta 16 --- EXPLORER MODE // 2025.12.02 @ 14:35:28 Player: K.K.Y. Result: Destroyed by Autobeam Turret with Autobeam Performance ------------- Evolutions (0) 0 Regions Visited (3) 600 Robots Destroyed (30) 150 Value Destroyed (532) 532 Prototype IDs (1) 20 Alien Tech Used (0) 0 Bonus (14) 14 TOTAL SCORE: 1316 Bonus ------- Follower Combat Kills 14 Cogmind --------- Core Integrity 0/250 Matter 300/300 Energy 100/100 System Corruption 1% Temperature Cool (12) Movement Core (100) Ox1 Location -10/Subcaves Parts ------- > --- POWER (1) -------- (None) > --- PROPULSION (2) --- (None) > --- UTILITY (3) ------ Small Storage Unit > --- WEAPON (2) ------- (None) > --- INVENTORY (8) ---- Ion Engine Light Nuclear Core Medium Storage Unit Huge Storage Unit Structural Scanner Mining Laser Hammer Peak State ------------ > --- POWER ------------ Light Ion Engine > --- PROPULSION ------- Hover Unit Hover Unit > --- UTILITY ---------- Small Storage Unit Structural Scanner Splice Drone Bay > --- WEAPON ----------- Light Assault Rifle Light Assault Rifle > --- INVENTORY -------- Ion Engine Light Ion Engine Light Nuclear Core Medium Storage Unit Huge Storage Unit Core Shielding Mining Laser Hammer [Rating: 15] Favorites ----------- Power Light Ion Engine Engine Light Ion Engine Propulsion Hover Unit Hover Unit Hover Unit Utility Structural Scanner Device Structural Scanner Storage Small Storage Unit Protection Core Shielding Weapon Light Assault Rifle Ballistic Gun Light Assault Rifle Build | -11 -10 -10 -10 ------- Run | Yrd Mat Min Sub Slots Evolved 1 | . 1 . . Power . | . . . . Propulsion . | . . . . Utility 1 | . 1 . . Weapon . | . . . . Parts Attached 16 | 2 9 4 1 Power 2 | . 2 . . Engine 2 | . 2 . . Core . | . . . . Reactor . | . . . . Propulsion 4 | . 3 1 . Treads . | . . . . Leg . | . . . . Wheel . | . . . . Hover 4 | . 3 1 . Flight . | . . . . Utility 7 | . 4 2 1 Device 5 | . 2 2 1 Storage 1 | . 1 . . Processor . | . . . . Hackware . | . . . . Protection 1 | . 1 . . Artifact . | . . . . Weapon 3 | 2 . 1 . Energy Gun . | . . . . Energy Cannon . | . . . . Ballistic Gun 3 | 2 . 1 . Ballistic Cannon . | . . . . Launcher . | . . . . Special Weapon . | . . . . Impact Weapon . | . . . . Slashing Weapon . | . . . . Piercing Weapon . | . . . . Special Melee Weapon . | . . . . Unidentified Prototypes 1 | . . 1 . Parts Lost 8 | . 1 . 7 Power 1 | . . . 1 Propulsion 3 | . 1 . 2 Utility 2 | . . . 2 Weapon 2 | . . . 2 Highest Loss Streak 5 | . 1 . 5 To Critical Strikes . | . . . . Average Backups 6 | 3 5 6 7 Power 1 | . 1 2 2 Propulsion . | 1 1 . . Utility 2 | 1 1 2 3 Weapon 1 | . 1 2 2 Tool/Special . | . . . . Unused Backups 9 | . 2 2 5 Power 2 | . . 1 1 Propulsion 3 | . 2 1 . Utility 2 | . . . 2 Weapon 2 | . . . 2 Tool/Special . | . . . . Average Slot Usage (%) 78 | . 58 99 69 Engine 6 | . . 12 10 Hover 14 | . 5 25 12 Device 12 | . 8 13 20 Storage 9 | . 6 12 12 Protection 9 | . 11 10 . Ballistic Gun 23 | . 25 25 13 Peak Build Rating 15 | 2 8 15 12 Average Rating 6 | . 4 9 8 On Entrance 4 | . 2 8 8 Avg Prop Armor Cover (%) . | . . . . Naked Turns . | . . . . Heaviest Build 19 | 2 12 19 18 Greatest Support 12 | 3 12 12 12 Greatest Overweight (x) 5 | . 2 1 5 Average Overweight (x) . | . . . 1 Largest Inventory Capacity 8 | 5 8 8 8 Average Capacity 7 | 5 6 8 8 Most Carried 8 | 5 7 8 8 Average Carried 6 | 3 5 6 7 Final Capacity 8 | 5 8 8 8 Final Carried 7 | 5 6 7 7 Class Distribution -------------------- 100% | Hacker-Mutant Dominant Class ---------------- Hacker-Mutant | -10/Materials Hacker-Mutant | -10/Mines Hacker-Mutant | -10/Subcaves Resources | -11 -10 -10 -10 ----------- Run | Yrd Mat Min Sub Matter Collected 559 | 173 231 121 34 Remotely . | . . . . Salvage Created 1013 | . 606 322 85 Parts 73 | . 46 23 4 Haulers Intercepted 2 | . 2 . . Recyclers Shooed 1 | . 1 . . Parts Field Recycled . | . . . . Retrieved Matter . | . . . . Parts Self-Destructed . | . . . . Prevented . | . . . . Parts Restored . | . . . . Kills | -11 -10 -10 -10 ------- Run | Yrd Mat Min Sub Combat Hostiles Destroyed 13 | . 7 4 2 Guns 13 | . 7 4 2 Classes Destroyed 10 | . 9 . 1 Worker 2 | . 1 1 . Builder 3 | . 2 1 . Tunneler 4 | . 1 3 . Hauler 2 | . 2 . . Recycler 2 | . 1 1 . Mechanic 1 | . 1 . . Watcher 3 | . 3 . . Swarmer 4 | . 2 2 . Grunt 7 | . 5 2 . Subdweller 2 | . . . 2 Best Kill Streak 4 | . 4 4 1 Combat Bots Only 2 | . 2 2 1 Max Kills in Single Turn 2 | . 2 1 1 Gunslinging . | . . . . Exploded . | . . . . Melee . | . . . . Uniques/NPCs Destroyed . | . . . . Combat | -11 -10 -10 -10 -------- Run | Yrd Mat Min Sub Hostile Shots Fired 202 | . 38 21 143 Missed 71 | . 12 7 52 Hits 131 | . 26 14 91 Projectile 131 | . 26 14 91 Critical Strikes 2 | . 1 . 1 Actively Blocked 1 | . 1 . . Damage Taken 859 | . 223 97 539 Core 254 | . 72 28 154 Absorbed by Shields . | . . . . Redirected to Shielding 16 | . 14 2 . Ignored by Resistances 564 | . 138 62 364 Core Remaining (%) 100 | 100 . . . Volleys Fired 102 | . 47 35 20 Largest 2 | . 2 2 2 Hottest 40 | . 40 40 40 Shots Fired 189 | . 94 71 24 Gun 189 | . 94 71 24 Cannon . | . . . . Launcher . | . . . . Special . | . . . . Kinetic 189 | . 94 71 24 Thermal . | . . . . Explosive . | . . . . Electromagnetic . | . . . . Robot Hit Streak 29 | . 29 12 16 Robot Miss Streak 2 | . 2 1 1 Penetration Max . | . . . . Secondary Targets 2 | . 1 1 . Max Gunslinging Chain 1 | . 1 1 . Shots Hit Robots 156 | . 78 56 22 Core Hits 65 | . 37 21 7 Critical Kills 1 | . 1 . . Critical Parts Destroyed . | . . . . Critical Strikes 3 | . 1 . 2 Destroy 3 | . 1 . 2 Melee Attacks . | . . . . Impact . | . . . . Slashing . | . . . . Piercing . | . . . . Sneak Attacks . | . . . . Combat Hostiles . | . . . . Follow-up Attacks . | . . . . Damage Inflicted 1294 | . 650 454 190 Guns 1294 | . 650 454 190 Cannons . | . . . . Explosions . | . . . . Melee . | . . . . Ramming . | . . . . Kinetic 1294 | . 650 454 190 Thermal . | . . . . Explosive . | . . . . Electromagnetic . | . . . . Impact . | . . . . Slashing . | . . . . Piercing . | . . . . Highest Corruption 1 | . 1 1 1 Average Corruption 1 | . 1 1 1 Corruption Purged . | . . . . Corruption Blocked . | . . . . Effects 12 | . 3 9 . Message Errors 1 | . . 1 . Matter Fused 2 | . 1 1 . Heat Flow Errors 2 | . 1 1 . Energy Discharges 1 | . . 1 . Data Loss (minor) 3 | . . 3 . Data Loss (major) 2 | . 1 1 . Misfires 1 | . . 1 . Overload Shots . | . . . . Overflow Damage . | . . . . Projectiles . | . . . . Explosions . | . . . . Melee . | . . . . Knockbacks . | . . . . Impact . | . . . . Kinetic . | . . . . Secondary . | . . . . Self-Inflicted Damage . | . . . . Shots . | . . . . Rammed 1 | . 1 . . Targets Rammed 1 | . 1 . . Kicked . | . . . . Crushed . | . . . . Highest Temperature 273 | . 130 273 . Average Temperature 31 | . 16 36 . Received Heat Transfer 678 | . 189 69 420 Siege Activations . | . . . . Martial Activations . | . . . . Shielding Activations . | . . . . Robots Disrupted . | . . . . Combat Hostiles . | . . . . Robots Corrupted . | . . . . Combat Hostiles . | . . . . Parts Fried . | . . . . Impact Corruptions . | . . . . Robots Melted . | . . . . Combat Hostiles . | . . . . Parts Melted . | . . . . Heat Transferred . | . . . . Parts Sabotaged . | . . . . Parts Stolen . | . . . . Parts Stripped . | . . . . Power Chain Reactions . | . . . . Alert | -11 -10 -10 -10 ------- Run | Yrd Mat Min Sub Maximum Alert Level . | . . . . Low Security (%) 100 | 100 100 100 . Level 1 . | . . . . Level 2 . | . . . . Level 3 . | . . . . Level 4 . | . . . . Level 5 . | . . . . High Security . | . . . . Max Security . | . . . . Peak Influence 50 | . 50 50 . Initial 4 | . . 4 . Average 7 | . 10 3 . Influence Increases 550 | . 290 145 115 Destroy 0b10 Robot/C 260 | . 140 80 40 Destroy 0b10 Robot/NC 85 | . 55 30 . Destroy Leader 70 | . 50 20 . Lose Combat Pursuer 135 | . 45 15 75 Influence Decreases 550 | . 275 160 115 Entered New Map 11 | . . 11 . Time Decay 499 | . 275 149 75 Lost Part 40 | . . . 40 Squads Dispatched . | . . . . Investigation . | . . . . Extermination . | . . . . Reinforcement . | . . . . Assault . | . . . . Garrison . | . . . . Intercept . | . . . . Searches Triggered . | . . . . Construction Impeded . | . . . . Haulers Reinforced . | . . . . Active Scanning Responses . | . . . . Cargo Convoy Interrupts . | . . . . Stealth | -11 -10 -10 -10 --------- Run | Yrd Mat Min Sub Distress Signals 1 | . 1 . . Communications Jammed . | . . . . Distress Signals . | . . . . Times Spotted 34 | . 16 5 13 Peak Tracking Total 6 | . 3 2 6 Tactical Retreats 6 | . 2 1 3 Traps | -11 -10 -10 -10 ------- Run | Yrd Mat Min Sub Traps Triggered 1 | . 1 . . Indirectly . | . . . . Trap Hack Attempts . | . . . . Triggered . | . . . . Disarmed . | . . . . Reprogrammed . | . . . . Reused . | . . . . Traps Extracted . | . . . . Installed . | . . . . Triggered . | . . . . Machines | -11 -10 -10 -10 ---------- Run | Yrd Mat Min Sub Machines Disabled . | . . . . Max in Single Turn . | . . . . Machines Repaired . | . . . . Machines Dismantled . | . . . . Machines Sabotaged . | . . . . Overloaded Fab Kills . | . . . . Hacking | -11 -10 -10 -10 --------- Run | Yrd Mat Min Sub Machines Accessed 1 | . . 1 . Terminals . | . . . . Fabricators . | . . . . Repair Stations . | . . . . Recycling Units . | . . . . Scanalyzers . | . . . . Garrison Access . | . . . . Total Hacks 1 | . . 1 . Successful 1 | . . 1 . Failed . | . . . . Catastrophic . | . . . . Database Lockouts . | . . . . Manual . | . . . . Terminals . | . . . . Fabricators . | . . . . Repair Stations . | . . . . Recycling Units . | . . . . Scanalyzers . | . . . . Garrison Access . | . . . . Terminal Hacks 1 | . . 1 . Open Door 1 | . . 1 . Fabricator Hacks . | . . . . Repair Station Hacks . | . . . . Recycling Unit Hacks . | . . . . Scanalyzer . | . . . . Garrison Access Hacks . | . . . . Unauthorized Hacks . | . . . . Terminals . | . . . . Fabricators . | . . . . Repair Stations . | . . . . Recycling Units . | . . . . Scanalyzers . | . . . . Garrison Access . | . . . . Data Cores Recovered . | . . . . Used . | . . . . Hacking Detections . | . . . . Full Trace Events . | . . . . Feedback Events . | . . . . Feedback Blocked . | . . . . Robot Schematics Acquired . | . . . . Robots Built . | . . . . Authchips . | . . . . Time . | . . . . Total Robot Build Rating . | . . . . Part Schematics Acquired . | . . . . Parts Built . | . . . . Authchips . | . . . . Time . | . . . . Total Part Build Rating . | . . . . Part Studies Acquired . | . . . . Parts Repaired . | . . . . Time . | . . . . Parts Recycled . | . . . . Recycled Matter . | . . . . Retrieved Matter . | . . . . Retrieved Components . | . . . . Parts Scanalyzed . | . . . . Part Schematics Acquired . | . . . . Parts Damaged . | . . . . Bothacking | -11 -10 -10 -10 ------------ Run | Yrd Mat Min Sub Used RIF Installer . | . . . . Robots Hacked . | . . . . Non-combat . | . . . . Combat . | . . . . Robot Hacks Applied . | . . . . Relay Couplers Released . | . . . . Fabnet Peak Effective % . | . . . . Robots Rewired . | . . . . Allies Hacked . | . . . . Hacks Repelled . | . . . . Allies | -11 -10 -10 -10 -------- Run | Yrd Mat Min Sub Total Allies 1 | . . . 1 Largest Group . | . . . . Highest-Rated Group . | . . . . Highest-Rated Ally . | . . . . Total Orders . | . . . . Ally Attacks 13 | . . . 13 Total Damage 63 | . . . 63 Kills 3 | . . . 3 Allies Corrupted . | . . . . Allies Melted . | . . . . Intel | -11 -10 -10 -10 ------- Run | Yrd Mat Min Sub Active Infowar (turns) 1511 | . 535 776 200 Sensors 150 | . . . 150 Structural 1438 | . 535 776 127 ECM 7 | . 7 . . Robot Analysis Total . | . . . . Derelict Logs Recovered . | . . . . Drone Launches 14 | . . . 14 Drone Recoveries 13 | . . . 13 Exploration | -11 -10 -10 -10 ------------- Run | Yrd Mat Min Sub Turns Passed 1775 | 27 764 776 208 Spaces Moved 1747 | 38 657 965 87 Core 448 | 38 407 . 3 Treads . | . . . . Legs . | . . . . Wheels . | . . . . Hover 1299 | . 250 965 84 Flight . | . . . . Fastest Speed 50 | 50 50 56 56 Average Speed 70 | 50 81 57 126 Slowest Speed 300 | 50 150 116 300 Overloaded Moves . | . . . . Propulsion Burnouts . | . . . . Robots Hopped . | . . . . Potential Cave-ins . | . . . . Cave-ins Triggered . | . . . . Exploration Rate (%) 49 | 4 84 99 9 Regions Visited 3 Branch Regions 2 Pre-discovered Areas . | . . . . Known Exits Taken 3 | 1 1 1 . Unknown Exits Taken . | . . . . Scrap Searched . | . . . . Spaces Dug . | . . . . Terrain Destroyed . | . . . . Melee . | . . . . Projectile . | . . . . AOE . | . . . . Terrain Rammed . | . . . . Walls Destroyed . | . . . . Machines Disabled . | . . . . Actions | -11 -10 -10 -10 --------- Run | Yrd Mat Min Sub Total 2145 | 44 806 1128 167 Wait 247 | . 82 109 56 Move 1744 | 37 656 964 87 Hop . | . . . . Pick Up 20 | 5 7 7 1 Fast Attach 6 | 2 4 . . Attach 9 | . 5 2 2 Detach 4 | . 1 2 1 Swap 2 | . . 2 . Drop 10 | . 3 7 . Fire 102 | . 47 35 20 Melee . | . . . . Ram 1 | . 1 . . Kick . | . . . . Crush . | . . . . Escape Stasis . | . . . . Rewire . | . . . . Trap . | . . . . Miscellaneous . | . . . . Route ------- -11/Scrapyard -10/Materials (discovered 4 exits: *Mat x2 / *Min x2) -10/Mines (discovered 4 exits: *Mat x2 / *Exi / *Sub) -10/Subcaves (discovered 2 exits: *Rec / [*Scr]) History --------- Turn | Location | Event 4 | -11/Scrapyard | Identified exit to Materials 4 | -11/Scrapyard | Discovered exit to Materials (range 16) 28 | -11/Scrapyard | Entered Materials 28 | -10/Materials | Evolved 1 slot: Utility x1 102 | -10/Materials | Identified exit to Materials 102 | -10/Materials | Discovered exit to Materials (range 11) 198 | -10/Materials | Discovered exit to Materials (range 4) 201 | -10/Materials | Identified exit to Mines 201 | -10/Materials | Discovered exit to Mines (range 15) 316 | -10/Materials | Build established: Hacker-Mutant 424 | -10/Materials | Discovered exit to Mines (range 7) 728 | -10/Materials | Derelicts attacked the area 792 | -10/Materials | Entered Mines 922 | -10/Mines | Identified exit to Subcaves 922 | -10/Mines | Discovered exit to Subcaves (range 6) 941 | -10/Mines | Deemed a non-threat by the Exiles lab entrance 941 | -10/Mines | Identified exit to Exiles 941 | -10/Mines | Discovered exit to Exiles (range 5) 1040 | -10/Mines | Discovered exit to Materials (range 8) 1049 | -10/Mines | Found the Drone Emporium 1050 | -10/Mines | Found Prototype Device 1088 | -10/Mines | Discovered exit to Materials (range 15) 1467 | -10/Mines | Identified Splice Drone Bay 1568 | -10/Mines | Entered Subcaves 1569 | -10/Subcaves | Approached by a straggling Scientist 1572 | -10/Subcaves | Identified exit to Recycling 1572 | -10/Subcaves | Discovered exit to Recycling (range 16) 1689 | -10/Subcaves | Core integrity fell below 50% 1771 | -10/Subcaves | Core integrity fell below 20% 1776 | -10/Subcaves | Destroyed by Autobeam Turret with Autobeam Last Messages --------------- 01762_ Splice Drone injecting Autobeam Turret... 01763_ Splice Drone released from Splice Drone Bay. 01763_ Splice Drone injecting Autobeam Turret... 01763_ Splice Drone retrieved by Splice Drone Bay (repair cost: 4). 01764_ Splice Drone retrieved by Splice Drone Bay (repair cost: 9). 01764_ Splice Drone injecting Autobeam Turret... 01764_ Splice Drone retrieved by Splice Drone Bay (repair cost: 2). 01764_ Lgt. Assault Rifle destroyed. 01766_ Splice Drone retrieved by Splice Drone Bay (repair cost: 7). 01768_ Splice Drone released from Splice Drone Bay. 01768_ Splice Drone Bay destroyed. 01768_ Sensor Array destroyed. 01769_ >> Lost connection to Splice Drone. 01772_ Subatomizers dissect the Lgt. Ion Engine. Map ----- +----------------------------------------------------+ | ?????????????????????????????????????????????????? | | ?????????????????????????????????????????????????? | | ?????????????????????????????????????????????????? | | ?????????????????????????????????????????????????? | | ?????????????????????????????????????????????????? | | ?????????????????????????????????????????????????? | | ?????????????????????????????????????????????????? | | ?????????????????????????????????????????????????? | | ?????????????????????????????????????????????????? | | ?????????????????????????????????????????????????? | | ??????????????????? ?????????????????????????????? | | ??????????????????# ?????????????????????????????? | | ?????????????? ## ?????????????????????????????? | | ??????????????? #% ???????????##???????????????? | | ???????????????# ?###??????# #??????????? ???? | | ???????????????? #######?# # ??????? ## ???? | | ??????????????#?# ## ###### ??????? ### ???? | | ??????????????# # %> ?????????### ?? # | | ??????????????? ??????????## ?### | | ????????????????? ???????????## #### | | ?????????????????? ????####????## ### | | ???????????????????#R ?#########???## """ | | ???????????????????# #??#" """##???### """ | | ???????????????????# ##### "##???#####"" " | | ??????????????????? ## n ##### "########## | | ??????????????????? # @ t""#######" | | ???????????????????### >## ## " | | ???????????????????### t""## | | ???????????????????## ##### "## " # | | ???????????????????## ##### "### "" ## | | ???????????????????###*= ##??#" """#### """ ### | | ????????????????#####%%%################ ### | | ????????????????## ##= #######????#### ### | | ????????????????## # ### ##???#### ## | | ????????????????### ##?##### ## ## | | ?????????????????## ####### ### # | | ?????????????????### #### ##### #### | | ?????????????????#### # ### ##### | | ??????????????????###### ## ####### | | ?????????????????????##"##### #######?# | | ?????????????????????## ##### ####????? | | ?????????????????????## ???### ##??????? | | ?????????????????????## ???### ###??????? ##? | | ???????????????????????????## ###???????###? | | ???????????????????????????## ###???????????? | | ???????????????????????????## #####???????????? | | ??????????????????????????? #####????????????? | | ??????????????????????????? ###??????????????? | | ?????????????????????????? ###???????????????? | | ????????????????????????? #####???????????????? | +----------------------------------------------------+ Best States ------------- Heat Dissipation 25 Energy Generation 10 Energy Capacity 250 Matter Stores 300 Matter Capacity 300 Sight Range 16 Robot Scan Range 14 Terrain Scan Density 10 ECM Strength 1 Resistance: KI 35 Resistance: TH 35 Resistance: EX 35 Resistance: EM 35 Resistance: I 35 Resistance: S 35 Resistance: P 35 Core Shielding 20 Evasion (%) 53 Offensive Hacking 20 Item Schematics ----------------- None Robot Schematics ------------------ None Fabricated ------------ Nothing Repaired ---------- Nothing Studied --------- None Alien Tech Used ----------------- None Achievements -------------- None Challenges ------------ None Game ------ Seed BlanketAutogunStatue Manual? 0 Play Time 00:14:34 Cumulative 155.1 hours Start 2025.12.02 @ 14:22:27 End 2025.12.02 @ 14:35:28 Sessions 1 Manual Loads 0 Difficulty Explorer Special Mode None Game No. 196 Rogue 0 Adventurer 0 Explorer 196 Win Type - Total 0 Types 0/0/0/0/0/0/0/0/0/0 Lore% 70 Gallery% 66 Achievement% 52 Wizard Run 0 Options --------- Layout 1 ASCII 0 Keyboard 0 Movement Mouse Keybinds 0 Fullscreen 1 Font 24/Smallcaps Map View 50x35 Zoom Use 0% Tactical HUD 1 Map Filters NONE Filters NONE Steam 1 RUN: 388ae671-e198-4097-9f05-9bf1dfb3b9e1